bitfinex-derivatives/quotes_SOLF0:USTF0_20241015
["timestamp","ask_amount","ask_price","bid_price","bid_amount"]
[1728983183158,3.2374,154.52,154.48,3.238]
[1728983185163,3.2374,154.52,154.47,15.54]
[1728983185356,3.2374,154.52,154.49,3.2378]
[1728983185556,3.2368,154.54,154.47,15.54]
[1728983185862,3.2368,154.54,154.5,3.2375]
[1728983186756,3.2368,154.54,154.51,3.2374]
[1728983187360,3.2371,154.53,154.5,3.2376]
[1728983187759,23.2906,154.56,154.48,3.27560875]
[1728983187960,3.2369,154.54,154.51,3.2373]
[1728983188564,3.2369,154.54,154.48,8.25560875]
[1728983188760,3.2366,154.55,154.49,15.54]
[1728983189358,3.2366,154.55,154.53,3.237]
[1728983190358,20.52,154.58,154.53,3.237]
[1728983190562,3.2365,154.56,154.53,3.237]
[1728983190758,18.2505,154.6,154.54,3.2367]
[1728983190961,3.2361,154.58,154.51,15.54]
[1728983191165,3.2361,154.58,154.52,4.98]
[1728983191362,3.2361,154.58,154.55,3.2365]
[1728983195970,3.2362,154.57,154.55,3.2365]
[1728983196465,4.96,154.61,154.52,9.51620714]
[1728983196668,4.96,154.61,154.53,1.3789]
[1728983197064,3.2358,154.59,154.56,3.2363]
[1728983197869,3.236,154.58,154.56,3.2363]
[1728983199272,3.2362,154.57,154.53,1.3789]
[1728983199473,15.54,154.6,154.52,6.2583]
[1728983199671,4.96,154.62,154.5,3.22792193]
[1728983199672,15.54,154.58,154.5,3.22792193]
[1728983199866,3.2371,154.53,154.51,3.2373]
[1728983201175,15.54,154.56,154.51,3.2373]
[1728983201673,3.2369,154.54,154.51,3.2373]
[1728983202165,15.54,154.56,154.49,4.96]
[1728983202472,3.2374,154.52,154.49,4.96]
[1728983203166,3.2374,154.52,154.5,3.2376]
[1728983204571,3.2376,154.51,154.49,4.96]
[1728983204766,3.2376,154.51,154.48,3.238]
[1728983204963,15.54,154.56,154.46,20.4]
[1728983205167,3.2372,154.53,154.46,20.4]
[1728983205763,3.2372,154.53,154.5,3.2375]
[1728983209176,3.2374,154.52,154.49,3.2377]
[1728983209767,9.96,154.53,154.48,13.27480075]
[1728983209972,9.96,154.52,154.48,3.238]
[1728983210175,9.96,154.52,154.47,9.96]
[1728983210372,9.96,154.5,154.46,4.86]
[1728983210570,3.238,154.49,154.46,3.2384]
[1728983210771,3.238,154.49,154.45,9.96]
[1728983211075,3.238,154.49,154.46,3.2384]
[1728983211476,3.238,154.49,154.45,9.96]
[1728983211781,3.238,154.49,154.45,3.2386]
[1728983212075,3.2384,154.47,154.44,2.7042]
[1728983212277,3.2384,154.47,154.44,4.6456]
[1728983212777,3.2384,154.47,154.44,1.4068]
[1728983214377,3.2384,154.47,154.45,3.2387]
[1728983220283,15.55,154.5,154.44,1.4068]
[1728983220479,3.2381,154.48,154.44,1.4068]
[1728983221378,3.2383,154.47,154.45,3.2386]
[1728983221683,15.55,154.48,154.43,0.12502]
[1728983222084,15.55,154.46,154.43,0.12502]
[1728983222277,3.2389,154.44,154.43,0.12502]
[1728983223683,3.2389,154.44,154.38,7.4472]
[1728983223684,3.2396,154.41,154.38,3.24]
[1728983223882,15.55,154.44,154.37,4.98502]
[1728983224283,3.2396,154.41,154.38,3.2401]
[1728983225174,15.55,154.44,154.37,0.12502]
[1728983225380,3.2395,154.42,154.39,3.2399]
[1728983226590,3.2392,154.43,154.4,3.2396]
[1728983226892,4.86,154.46,154.41,15.55]
[1728983227081,1.3119,154.47,154.41,15.55]
[1728983227082,9.4104,154.47,154.43,3.2389]
[1728983227285,4.86,154.47,154.41,15.55]
[1728983227687,3.2384,154.47,154.44,3.2388]
[1728983227884,4.86,154.5,154.43,15.55]
[1728983228287,3.2382,154.48,154.45,3.2386]
[1728983228691,1.3976,154.52,154.43,15.55]
[1728983228988,6.2576,154.52,154.45,15.55]
[1728983229689,15.55,154.55,154.45,15.55]
[1728983229896,4.86,154.54,154.45,15.55]
[1728983230394,3.2376,154.51,154.45,15.55]
[1728983230693,8.097,154.54,154.49,3.2377]
[1728983230888,4.86,154.54,154.49,3.2377]
[1728983231694,3.2374,154.52,154.49,3.2377]
[1728983233795,3.2374,154.52,154.5,9.96]
[1728983236394,3.2374,154.52,154.5,13.1976]
[1728983236596,3.2374,154.51,154.5,9.96]
[1728983237294,9.96,154.54,154.5,9.96]
[1728983237492,3.2373,154.52,154.5,9.96]
[1728983238506,3.2373,154.52,154.5,13.1976]
[1728983238808,3.2372,154.53,154.5,13.1976]
[1728983239100,14.72,154.55,154.5,13.1976]
[1728983239296,0.97543351,154.54,154.5,9.96]
[1728983239501,9.96,154.52,154.47,9.96]
[1728983239905,3.2381,154.48,154.47,9.96]
[1728983240301,9.96,154.5,154.45,9.96]
[1728983240498,9.96,154.5,154.45,13.1987]
[1728983240803,9.96,154.5,154.45,9.96]
[1728983241200,9.96,154.49,154.41,3.982]
[1728983241401,7.95967303,154.51,154.43,9.96]
[1728983241402,9.96,154.48,154.43,9.96]
[1728983241805,3.2386,154.46,154.43,13.199]
[1728983242102,9.96,154.47,154.42,9.96]
[1728983242307,3.2391,154.43,154.41,3.2394]
[1728983243103,9.96,154.45,154.4,9.96]
[1728983243803,3.2393,154.43,154.4,3.2396]
[1728983244002,3.2393,154.43,154.38,4.76]
[1728983245007,20.32,154.47,154.38,4.76]
[1728983245306,3.239,154.44,154.41,3.2395]
[1728983247705,3.2393,154.43,154.4,3.2397]
[1728983248304,20.32,154.47,154.38,4.76]
[1728983248305,3.2394,154.42,154.38,4.76]
[1728983248703,3.2394,154.42,154.37,20.44502]
[1728983249202,3.2394,154.42,154.37,4.88502]
[1728983249403,3.2394,154.42,154.4,3.2397]
[1728983249698,3.2394,154.42,154.37,20.44502]
[1728983249902,3.2395,154.42,154.37,20.44502]
[1728983250104,3.2395,154.42,154.39,3.2398]
[1728983250697,20.32,154.47,154.39,3.2398]
[1728983251302,3.2395,154.42,154.39,3.2398]
[1728983252308,20.32,154.47,154.39,3.2398]
[1728983253412,3.2394,154.42,154.39,3.2398]
[1728983254111,3.2395,154.41,154.39,3.2398]
[1728983255312,20.32,154.47,154.37,20.44502]
[1728983255512,3.2394,154.42,154.4,3.2397]
[1728983256015,3.2394,154.42,154.4,18.7997]
[1728983263725,4.76,154.47,154.4,15.56]
[1728983263922,9.95,154.47,154.43,9.95]
[1728983264124,4.7,154.46,154.43,9.95]
[1728983265421,3.239,154.44,154.43,9.95]
[1728983265925,3.2389,154.44,154.43,9.95]
[1728983266815,3.2389,154.45,154.43,9.95]
[1728983267519,2.6408,154.5,154.41,3.19552416]
[1728983267520,2.6408,154.5,154.44,9.95]
[1728983267819,12.5908,154.5,154.45,13.1886]
[1728983268025,17.2908,154.5,154.45,13.1886]
[1728983268224,4.7,154.5,154.46,9.95]
[1728983268424,4.7,154.5,154.46,13.1883]
[1728983268814,3.238,154.49,154.46,13.1883]
[1728983270422,14.65,154.5,154.45,9.95]
[1728983270628,3.2384,154.47,154.45,9.95]
[1728983271127,14.65,154.5,154.44,9.95]
[1728983271128,3.2386,154.46,154.44,9.95]
[1728983271622,3.2388,154.45,154.43,9.95]
[1728983272024,9.95,154.48,154.43,9.95]
[1728983272224,9.95,154.46,154.41,9.95]
[1728983272723,3.2388,154.45,154.41,13.1895]
[1728983272920,9.95,154.46,154.41,13.1895]
[1728983273319,3.2391,154.44,154.41,13.1895]
[1728983273718,9.95,154.46,154.41,9.95]
[1728983273920,3.2389,154.44,154.42,13.1891]
[1728983275022,3.2391,154.43,154.41,13.1895]
[1728983275224,4.7,154.5,154.41,9.95]
[1728983275430,3.2388,154.45,154.43,3.239]
[1728983275631,3.2388,154.45,154.43,9.95]
[1728983276134,9.95,154.48,154.43,9.95]
[1728983276427,3.2386,154.46,154.43,9.95]
[1728983276831,9.95,154.48,154.43,9.95]
[1728983277031,3.2389,154.45,154.43,9.95]
[1728983277335,9.95,154.47,154.42,13.1892]
[1728983277530,3.2389,154.44,154.42,13.1892]
[1728983279633,9.95,154.47,154.39,4.7]
[1728983279826,3.2392,154.43,154.42,9.95]
[1728983282638,3.2395,154.42,154.4,9.95]
[1728983282831,9.95,154.43,154.39,9.95]
[1728983283036,9.95,154.43,154.38,2.6538]
[1728983283232,9.95,154.45,154.39,9.95]
[1728983283542,3.2397,154.41,154.39,9.95]
[1728983285039,3.2397,154.4,154.39,9.95]
[1728983285240,9.95,154.45,154.39,9.95]
[1728983285533,9.95,154.45,154.4,9.95]
[1728983285739,3.2396,154.41,154.4,9.95]
[1728983288543,9.95,154.43,154.38,9.95]
[1728983289457,9.95,154.43,154.37,0.12502]
[1728983289458,14.67,154.42,154.37,0.12502]
[1728983289650,9.95,154.41,154.37,0.12502]
[1728983289852,3.2402,154.38,154.37,0.12502]
[1728983290047,7.9602,154.38,154.37,0.12502]
[1728983290646,4.72,154.4,154.37,10.07502]
[1728983290850,4.72,154.4,154.38,9.95]
[1728983291245,3.2402,154.38,154.37,10.07502]
[1728983291455,4.72,154.4,154.37,10.07502]
[1728983291851,3.2401,154.39,154.37,10.07502]
[1728983292459,3.2401,154.39,154.37,13.31532]
[1728983292652,3.2401,154.39,154.37,10.07502]
[1728983293752,3.2401,154.39,154.38,9.95]
[1728983294455,3.2401,154.39,154.37,0.12502]
[1728983294760,3.2401,154.39,154.37,10.07502]
[1728983295359,4.72,154.4,154.37,0.12502]
[1728983295561,3.2402,154.38,154.37,0.12502]
[1728983300351,13.1902,154.38,154.37,0.12502]
[1728983300661,3.2413,154.33,154.31,10.07502]
[1728983301453,9.95,154.34,154.31,0.12502]
[1728983301650,9.95,154.35,154.31,0.12502]
[1728983302260,3.2414,154.33,154.31,0.12502]
[1728983302855,3.2414,154.33,154.31,10.07502]
[1728983303251,3.2414,154.33,154.31,0.12502]
[1728983304152,3.2414,154.33,154.31,10.07502]
[1728983305869,4.7,154.36,154.31,10.07502]
[1728983306162,4.7,154.37,154.33,9.95]
[1728983306563,14.65,154.37,154.33,9.95]
[1728983306764,14.65,154.37,154.32,9.95]
[1728983307763,3.2411,154.34,154.32,9.95]
[1728983309064,3.2411,154.34,154.31,13.31652]
[1728983311269,3.2413,154.33,154.31,10.07502]
[1728983312376,9.95,154.35,154.31,10.07502]
[1728983313372,3.2413,154.33,154.31,10.07502]
[1728983314573,3.2411,154.34,154.31,13.31652]
[1728983314973,9.95,154.35,154.31,13.31652]
[1728983315274,3.2413,154.33,154.31,13.31652]
[1728983316071,9.95,154.35,154.31,0.12502]
[1728983316473,9.95,154.36,154.32,9.95]
[1728983316775,3.2412,154.34,154.32,9.95]
[1728983316964,9.95,154.34,154.31,0.12502]
[1728983317172,3.2414,154.32,154.31,0.12502]
[1728983319069,7.92645863,154.37,154.31,0.12502]
[1728983319276,9.95,154.35,154.31,0.12502]
[1728983319876,3.2414,154.32,154.31,0.12502]
[1728983320384,3.2412,154.34,154.32,3.2414]
[1728983320976,3.2412,154.34,154.31,13.31652]
[1728983321379,3.2413,154.33,154.31,13.31652]
[1728983321676,14.65,154.35,154.31,0.12502]
[1728983321875,9.95,154.34,154.31,0.12502]
[1728983322079,3.2414,154.32,154.31,0.12502]
[1728983324177,4.78,154.35,154.31,10.07502]
[1728983324684,4.78,154.35,154.31,13.31652]
[1728983324882,3.2412,154.34,154.31,13.31652]
[1728983325278,2.6825,154.41,154.33,9.95]
[1728983325473,5.75565553,154.4,154.34,9.95]
[1728983325680,4.78,154.4,154.36,9.95]
[1728983325880,3.2404,154.37,154.36,9.95]
[1728983326375,3.24,154.39,154.36,9.95]
[1728983326570,4.78,154.4,154.36,9.95]
[1728983327374,3.2401,154.39,154.37,9.95]
[1728983329593,3.2402,154.38,154.35,13.1908]
[1728983331090,4.78,154.4,154.35,9.95]
[1728983331286,3.2404,154.37,154.35,9.95]
[1728983331481,9.95,154.39,154.31,0.12502]
[1728983331689,9.95,154.39,154.33,9.95]
[1728983331889,3.2409,154.35,154.33,9.95]
[1728983332090,3.2409,154.35,154.34,9.95]
[1728983335197,9.95,154.38,154.33,9.95]
[1728983335394,3.241,154.34,154.33,9.95]
[1728983336691,3.2409,154.35,154.33,9.95]
[1728983338393,14.73,154.38,154.33,9.95]
[1728983339297,3.2409,154.35,154.33,9.95]
[1728983339600,3.2409,154.35,154.32,3.2413]
[1728983339799,3.2412,154.33,154.32,9.95]
[1728983340795,3.2412,154.33,154.31,0.12502]
[1728983340796,3.2412,154.33,154.31,10.07502]
[1728983341000,3.2412,154.33,154.31,3.36662]
[1728983341198,3.2412,154.33,154.31,13.31662]
[1728983341499,3.241,154.34,154.32,13.1914]
[1728983341700,9.95,154.37,154.32,13.1914]
[1728983342292,3.241,154.35,154.32,13.1914]
[1728983342499,9.95,154.37,154.32,13.1914]
[1728983343895,9.95,154.36,154.31,3.36662]
[1728983344100,9.95,154.34,154.31,0.12502]
[1728983344298,3.18052615,154.36,154.31,0.12502]
[1728983344299,9.95,154.33,154.31,0.12502]
[1728983344506,13.1914,154.32,154.31,0.12502]
[1728983345903,3.2414,154.32,154.31,0.12502]
[1728983349403,13.1914,154.32,154.31,0.12502]
[1728983351705,3.2414,154.32,154.31,0.12502]
[1728983353522,13.1914,154.32,154.31,0.12502]
[1728983356119,3.2414,154.32,154.31,0.12502]
[1728983360125,13.1914,154.32,154.31,0.12502]
[1728983360325,14.16649866,154.32,154.31,0.12502]
[1728983362624,3.2424,154.26,154.25,0.12502]
[1728983362824,14.77,154.29,154.25,0.12502]
[1728983364622,3.2424,154.26,154.25,0.12502]
[1728983367832,14.77,154.29,154.25,0.12502]
[1728983368037,3.242,154.28,154.26,9.95]
[1728983368922,4.82,154.29,154.25,0.12502]
[1728983369132,4.82,154.29,154.27,9.95]
[1728983369322,4.82,154.29,154.26,9.95]
[1728983370131,3.2419,154.28,154.26,9.95]
[1728983370631,4.82,154.29,154.26,9.95]
[1728983370932,4.82,154.29,154.25,0.12502]
[1728983370933,3.2416,154.3,154.28,9.95]
[1728983371927,9.95,154.29,154.25,0.12502]
[1728983372127,13.1924,154.26,154.25,0.12502]
[1728983372637,3.2424,154.26,154.25,0.12502]
[1728983376032,13.1924,154.26,154.25,0.12502]
[1728983377234,18.0124,154.26,154.25,0.12502]
[1728983380926,8.0624,154.26,154.25,0.12502]
[1728983382129,9.7195,154.39,154.25,0.12502]
[1728983382331,3.242,154.28,154.25,10.07502]
[1728983382534,3.242,154.28,154.25,0.12502]
[1728983383530,3.2422,154.27,154.25,0.12502]
[1728983383931,9.95,154.29,154.25,3.36752]
[1728983384834,3.2421,154.28,154.25,3.36752]
[1728983385235,9.95,154.28,154.25,0.12502]
[1728983385429,3.2424,154.26,154.25,0.12502]
[1728983401358,13.1924,154.26,154.25,0.12502]
[1728983407859,3.2424,154.26,154.25,0.12502]
[1728983408060,13.1924,154.26,154.25,0.12502]
[1728983409162,3.2424,154.26,154.25,0.12502]
[1728983413355,4.84,154.28,154.25,0.12502]
[1728983413566,14.79,154.29,154.25,0.12502]
[1728983415060,4.84,154.29,154.25,0.12502]
[1728983415252,14.79,154.29,154.25,0.12502]
[1728983415457,3.2424,154.26,154.25,0.12502]
[1728983417466,3.2423,154.27,154.25,0.12502]
[1728983418362,14.79,154.29,154.25,0.12502]
[1728983418565,3.2424,154.26,154.25,0.12502]
[1728983419167,4.78,154.29,154.25,10.07502]
[1728983420464,3.242,154.28,154.25,10.07502]
[1728983421566,19.44,154.43,154.27,9.95]
[1728983421767,3.2414,154.31,154.27,9.95]
[1728983422175,3.2414,154.31,154.28,3.2418]
[1728983422370,3.2414,154.31,154.29,9.95]
[1728983422562,1.3761,154.37,154.3,9.95]
[1728983422767,4.78,154.35,154.3,9.95]
[1728983424074,21.35035754,154.42,154.31,9.95]
[1728983424270,9.95,154.37,154.31,9.95]
[1728983424576,4.78,154.36,154.31,9.95]
[1728983424973,3.2408,154.34,154.31,13.1912]
[1728983425282,3.9834,154.41,154.26,2.7916]
[1728983425283,9.95,154.39,154.33,9.95]
[1728983425474,3.9834,154.41,154.34,9.95]
[1728983425475,4.78,154.38,154.34,9.95]
[1728983425677,4.78,154.38,154.36,9.95]
[1728983426073,8.0196,154.4,154.37,9.95]
[1728983426576,4.78,154.41,154.37,9.95]
[1728983426974,3.2395,154.4,154.37,9.95]
[1728983427477,8.0191,154.42,154.38,9.95]
[1728983427979,4.78,154.42,154.38,9.95]
[1728983429179,3.2393,154.41,154.38,9.95]
[1728983429473,4.78,154.42,154.38,9.95]
[1728983429973,3.2392,154.41,154.38,9.95]
[1728983430982,3.239,154.42,154.38,13.1897]
[1728983431675,14.73,154.43,154.33,3.9788]
[1728983431882,14.73,154.43,154.36,9.95]
[1728983431883,9.95,154.41,154.36,9.95]
[1728983432080,3.2395,154.4,154.36,9.95]
[1728983433377,3.2395,154.4,154.36,13.1902]
[1728983434388,3.2398,154.39,154.35,3.2404]
[1728983434576,3.2398,154.39,154.37,9.95]
[1728983435280,3.2398,154.39,154.33,3.9788]
[1728983435478,9.95,154.41,154.36,9.95]
[1728983435677,3.24,154.38,154.36,9.95]
[1728983438185,3.2401,154.37,154.36,9.95]
[1728983438379,14.73,154.39,154.33,3.9788]
[1728983438579,14.73,154.39,154.34,9.95]
[1728983439082,3.2404,154.36,154.34,9.95]
[1728983439785,4.78,154.39,154.35,9.95]
[1728983439985,3.2401,154.37,154.35,9.95]
[1728983443594,3.2399,154.38,154.35,13.1904]
[1728983445179,8.0198,154.39,154.37,9.95]
[1728983445376,8.0198,154.39,154.38,9.95]
[1728983446586,3.2398,154.39,154.38,9.95]
[1728983447283,4.76,154.4,154.37,9.95]
[1728983447485,3.2399,154.38,154.37,9.95]
[1728983448985,3.2402,154.37,154.33,7.2195]
[1728983449188,3.2402,154.37,154.36,9.95]
[1728983450481,4.76,154.4,154.36,9.95]
[1728983450681,3.24,154.38,154.36,9.95]
[1728983451184,4.76,154.4,154.36,9.95]
[1728983451185,3.2397,154.39,154.36,9.95]
[1728983451786,3.2397,154.39,154.36,13.1903]
[1728983452089,3.2397,154.39,154.37,9.95]
[1728983452389,4.76,154.4,154.37,9.95]
[1728983452585,3.2398,154.38,154.37,9.95]
[1728983454088,3.2398,154.38,154.36,9.95]
[1728983456685,4.76,154.4,154.36,9.95]
[1728983456888,3.2401,154.37,154.36,9.95]
[1728983460585,3.2401,154.37,154.34,13.1907]
[1728983461992,3.2401,154.37,154.35,9.95]
[1728983462193,4.76,154.4,154.35,9.95]
[1728983462395,4.76,154.4,154.38,9.95]
[1728983462894,3.2399,154.38,154.37,9.95]
[1728983463286,3.2399,154.38,154.35,3.2404]
[1728983463482,3.2399,154.38,154.36,9.95]
[1728983463794,3.2397,154.39,154.37,9.95]
[1728983464491,14.71,154.4,154.33,3.9788]
[1728983464691,14.71,154.4,154.35,9.95]
[1728983466390,3.24,154.38,154.35,9.95]
[1728983467083,3.2401,154.37,154.35,9.95]
[1728983468398,9.95,154.4,154.36,9.95]
[1728983468694,4.76,154.4,154.36,9.95]
[1728983468888,3.2398,154.39,154.36,13.1902]
[1728983471394,3.2393,154.41,154.37,13.1899]
[1728983471586,3.2393,154.41,154.33,3.9788]
[1728983471587,4.76,154.43,154.4,9.95]
[1728983472191,3.2392,154.42,154.4,9.95]
[1728983472894,3.2389,154.43,154.41,9.95]
[1728983473594,3.2384,154.45,154.42,9.95]
[1728983473998,4.76,154.46,154.42,9.95]
[1728983475193,3.2383,154.46,154.42,9.95]
[1728983475399,14.65,154.47,154.42,13.189]
[1728983475900,14.65,154.47,154.42,9.95]
[1728983476096,3.2386,154.44,154.42,9.95]
[1728983476700,14.65,154.47,154.42,9.95]
[1728983476898,3.2386,154.44,154.42,9.95]
[1728983477098,4.7,154.46,154.42,9.95]
[1728983477402,4.21346489,154.45,154.42,9.95]
[1728983477603,0.97496489,154.44,154.42,9.95]
[1728983478100,0.97496489,154.44,154.42,13.189]
[1728983480493,3.2385,154.45,154.42,13.189]
[1728983480698,0.97495565,154.44,154.42,13.189]
[1728983480900,4.21365565,154.44,154.42,9.95]
[1728983481097,0.97493556,154.43,154.42,9.95]
[1728983481298,14.65,154.47,154.42,9.95]
[1728983481501,0.97492973,154.46,154.42,9.95]
[1728983481899,3.2385,154.45,154.42,13.189]
[1728983482097,0.97492973,154.44,154.42,13.189]
[1728983482405,14.65,154.47,154.42,13.189]
[1728983482702,0.97460146,154.46,154.42,9.95]
[1728983483302,3.2385,154.45,154.42,13.189]
[1728983483501,0.97460146,154.44,154.42,13.189]
[1728983483899,3.2385,154.45,154.42,13.189]
[1728983484094,3.31467595,154.5,154.44,9.95]
[1728983484293,5.67394764,154.49,154.44,13.1884]
[1728983484505,5.67394764,154.49,154.45,9.95]
[1728983484506,0.97395684,154.48,154.45,9.95]
[1728983484903,6.4714,154.58,154.47,9.95]
[1728983485101,6.4714,154.58,154.43,4.7]
[1728983485102,9.95,154.55,154.49,9.95]
[1728983485298,25.41166921,154.58,154.52,9.95]
[1728983485299,8.91045559,154.54,154.52,9.95]
[1728983485507,3.2365,154.54,154.52,9.95]
[1728983486411,3.2364,154.55,154.52,9.95]
[1728983486807,4.7,154.58,154.53,9.95]
[1728983487012,14.65,154.59,154.54,9.95]
[1728983487205,0.97425794,154.58,154.54,9.95]
[1728983487811,3.236,154.57,154.54,9.95]
[1728983488210,9.95,154.59,154.54,9.95]
[1728983488412,14.65,154.6,154.56,9.95]
[1728983488609,0.97432247,154.59,154.56,9.95]
[1728983488912,3.2356,154.59,154.56,9.95]
[1728983490110,9.95,154.59,154.54,9.95]
[1728983490412,3.2357,154.58,154.54,13.1864]
[1728983493114,3.2357,154.58,154.55,9.95]
[1728983496520,4.7,154.62,154.55,9.95]
[1728983496521,3.2355,154.59,154.57,9.95]
[1728983506622,9.95,154.62,154.57,9.95]
[1728983508029,3.2356,154.59,154.57,9.95]
[1728983516428,9.95,154.6,154.53,3.2365]
[1728983516634,9.95,154.59,154.48,3.9574]
[1728983516934,9.95,154.57,154.52,9.95]
[1728983517239,3.2366,154.54,154.52,9.95]
[1728983517939,4.64,154.59,154.52,9.95]
[1728983518141,9.95,154.58,154.53,9.95]
[1728983518636,4.64,154.59,154.55,9.95]
[1728983518637,3.236,154.57,154.55,9.95]
[1728983519139,3.2361,154.56,154.55,9.95]
[1728983520136,3.2357,154.58,154.55,9.95]
[1728983520336,4.64,154.6,154.57,9.95]
[1728983520833,4.64,154.6,154.56,9.95]
[1728983521833,3.2355,154.59,154.56,9.95]
[1728983522031,4.64,154.6,154.56,9.95]
[1728983522536,14.59,154.6,154.56,9.95]
[1728983523537,3.2359,154.57,154.56,9.95]
[1728983528245,3.2362,154.56,154.54,9.95]
[1728983532041,3.2363,154.55,154.53,9.95]
[1728983532436,9.95,154.56,154.48,3.9574]
[1728983532634,3.2369,154.53,154.5,13.1873]
[1728983532838,3.2369,154.53,154.51,9.95]
[1728983534449,3.2368,154.53,154.51,9.95]
[1728983537847,4.64,154.56,154.51,9.95]
[1728983538047,9.95,154.59,154.54,9.95]
[1728983538245,9.95,154.59,154.55,9.95]
[1728983538246,4.6,154.59,154.55,9.95]
[1728983538452,3.236,154.57,154.55,9.95]
[1728983541442,4.6,154.6,154.55,9.95]
[1728983541644,4.6,154.6,154.52,4.6]
[1728983541645,2.6163,154.66,154.59,9.95]
[1728983541841,15.52512935,154.65,154.59,9.95]
[1728983542046,3.2346,154.64,154.59,9.95]
[1728983542247,14.55,154.65,154.59,9.95]
[1728983542646,17.76323791,154.65,154.59,9.95]
[1728983542946,3.2349,154.62,154.59,9.95]
[1728983544541,4.6,154.65,154.61,9.95]
[1728983545149,3.2347,154.63,154.61,9.95]
[1728983545555,0.97547581,154.62,154.61,9.95]
[1728983546447,0.97547581,154.62,154.6,9.95]
[1728983546641,0.97547581,154.61,154.6,9.95]
[1728983546846,0.97547581,154.64,154.6,9.95]
[1728983547152,3.2349,154.62,154.59,9.95]
[1728983547354,0.97539587,154.61,154.59,9.95]
[1728983547654,3.2349,154.62,154.59,9.95]
[1728983547856,0.97535725,154.61,154.59,9.95]
[1728983549848,0.97535725,154.61,154.59,13.1854]
[1728983550250,0.97535725,154.61,154.59,9.95]
[1728983551052,22.68165619,154.69,154.59,9.95]
[1728983551352,3.2346,154.63,154.6,9.95]
[1728983551655,0.97537718,154.62,154.6,9.95]
[1728983551952,0.97537718,154.62,154.5,6.4743]
[1728983551953,9.95,154.61,154.52,9.95]
[1728983552153,9.95,154.57,154.52,9.95]
[1728983552358,0.97537718,154.56,154.53,3.2367]
[1728983553349,4.21147718,154.56,154.53,3.2367]
[1728983553552,3.2361,154.56,154.53,3.2367]
[1728983554657,3.2361,154.56,154.52,9.95]
[1728983554954,3.2361,154.56,154.52,13.1868]
[1728983555153,3.2363,154.55,154.52,3.2368]
[1728983555347,4.6,154.58,154.53,3.2367]
[1728983555550,9.95,154.57,154.51,9.95]
[1728983555758,3.2364,154.55,154.51,9.95]
[1728983555957,3.2364,154.55,154.51,13.187]
[1728983556857,3.2364,154.55,154.52,3.2369]
[1728983562161,3.2364,154.55,154.52,13.1869]
[1728983562357,3.2361,154.56,154.53,3.2367]